bitfinex/quotes_BTCUSD_20220218
["timestamp","ask_amount","ask_price","bid_price","bid_amount"]
[1645217352394,0.09480999,40123.0,40117.0,0.010219]
[1645217352994,0.19593685,40125.0,40117.0,0.010219]
[1645217352995,0.09296532,40124.0,40118.0,0.06232]
[1645217353197,0.0096,40125.0,40122.0,0.134825]
[1645217353396,0.504,40131.0,40124.0,0.010219]
[1645217353596,0.00143224,40134.0,40127.0,0.010219]
[1645217353797,0.0011,40134.0,40129.0,0.010219]
[1645217353998,0.0011,40134.0,40131.0,0.010219]
[1645217354798,0.0011,40134.0,40133.0,0.1]
[1645217355446,0.0011,40134.0,40133.0,0.53295864]
[1645217355852,0.0011,40134.0,40133.0,0.54245864]
[1645217356047,0.0011,40134.0,40133.0,0.1095]
[1645217356253,0.0011,40134.0,40133.0,0.0095]
[1645217356947,0.0011,40134.0,40129.0,0.19727586]
[1645217357548,0.0011,40134.0,40129.0,0.124589]
[1645217357549,0.12836067,40133.0,40129.0,0.124589]
[1645217357747,0.12869291,40133.0,40129.0,0.124589]
[1645217358347,0.12869291,40133.0,40131.0,0.00183629]
[1645217358548,0.00143224,40134.0,40131.0,0.00183629]
[1645217358750,0.0011,40134.0,40131.0,0.00183629]
[1645217358948,0.10680868,40134.0,40131.0,0.00183629]
[1645217359202,0.0011,40134.0,40132.0,0.062294]
[1645217359390,0.0011,40134.0,40133.0,0.110219]
[1645217359795,0.0011,40134.0,40133.0,0.54317764]
[1645217361192,0.0011,40134.0,40133.0,0.64317764]
[1645217361398,0.0011,40134.0,40133.0,1.44317764]
[1645217361593,0.00033224,40136.0,40134.0,0.00165445]
[1645217361893,0.0021,40142.0,40137.0,0.186784]
[1645217362196,0.0021,40142.0,40140.0,0.062262]
[1645217362399,0.00243308,40142.0,40141.0,0.110219]
[1645217362592,0.0021,40142.0,40141.0,0.110219]
[1645217363043,0.0021,40142.0,40141.0,0.160219]
[1645217363443,0.0021,40142.0,40141.0,0.59317764]
[1645217363644,0.0032,40143.0,40142.0,1.15]
[1645217363847,0.0032,40143.0,40142.0,1.68295864]
[1645217364044,0.0032,40143.0,40142.0,1.88059053]
[1645217364344,0.00243308,40145.0,40143.0,0.462258]
[1645217364546,0.0021,40145.0,40144.0,0.53295864]
[1645217364747,0.00143308,40147.0,40145.0,1.15]
[1645217364950,0.0011,40147.0,40145.0,0.160219]
[1645217365151,0.0011,40147.0,40144.0,0.3]
[1645217365152,0.0011,40147.0,40146.0,0.19763189]
[1645217365346,0.26683302,40144.0,40143.0,0.112258]
[1645217365547,0.25156302,40144.0,40143.0,0.112258]
[1645217366548,0.25156302,40144.0,40140.0,0.010219]
[1645217366803,0.25156302,40144.0,40138.0,0.071486]
[1645217367003,0.2518961,40144.0,40138.0,0.071486]
[1645217367402,0.25815718,40143.0,40139.0,0.010219]
[1645217367607,0.25849026,40143.0,40139.0,0.010219]
[1645217367803,0.35464665,40143.0,40139.0,0.010219]
[1645217368201,0.26028256,40143.0,40139.0,0.010219]
[1645217368404,0.09176435,40142.0,40139.0,0.134781]
[1645217368804,0.00212538,40143.0,40139.0,0.134781]
[1645217369206,0.00212538,40143.0,40141.0,0.010219]
[1645217369402,0.0017923,40143.0,40142.0,0.110219]
[1645217370104,0.0017923,40143.0,40142.0,0.010219]
[1645217370309,0.0017923,40143.0,40141.0,0.072484]
[1645217370540,0.0017923,40143.0,40139.0,0.010219]
[1645217370739,0.00212538,40143.0,40139.0,0.010219]
[1645217371140,0.12629389,40143.0,40139.0,0.010219]
[1645217372142,0.65919636,40143.0,40138.0,0.071487]
[1645217372341,0.09164353,40142.0,40138.0,0.071487]
[1645217372540,0.09197661,40142.0,40138.0,0.071487]
[1645217372742,0.00298425,40141.0,40138.0,0.071487]
[1645217373544,0.00298425,40141.0,40138.0,0.081706]
[1645217374392,0.00298425,40141.0,40138.0,0.071487]
[1645217374393,0.21600259,40139.0,40138.0,0.071487]
[1645217374992,0.21600259,40139.0,40138.0,0.062287]
[1645217375599,0.11777706,40140.0,40138.0,0.062287]
[1645217375995,0.00331733,40141.0,40138.0,0.062287]
[1645217376196,0.00298425,40141.0,40138.0,0.062287]
[1645217376395,0.00298425,40141.0,40140.0,0.1]
[1645217376995,0.00298425,40141.0,40140.0,2.56349224]
[1645217377395,0.00298425,40141.0,40140.0,2.66107371]
[1645217377594,0.00298425,40141.0,40140.0,0.19758147]
[1645217378035,0.00437513,40141.0,40139.0,0.010219]
[1645217378239,0.00437513,40141.0,40138.0,0.124545]
[1645217378838,0.11398856,40140.0,40138.0,0.124545]
[1645217380039,0.00470821,40141.0,40138.0,0.124545]
[1645217380239,0.00470821,40141.0,40140.0,0.110219]
[1645217380240,0.00437513,40141.0,40140.0,0.110219]
[1645217380439,0.00437513,40141.0,40140.0,0.010219]
[1645217382694,0.00437513,40141.0,40140.0,0.110219]
[1645217382893,0.00437513,40141.0,40140.0,0.010219]
[1645217383094,0.00033308,40143.0,40139.0,0.062272]
[1645217383095,0.35196704,40140.0,40139.0,0.06579165]
[1645217383294,0.25156302,40144.0,40139.0,0.06579165]
[1645217383499,0.00033308,40143.0,40139.0,0.06579165]
[1645217383695,0.25156302,40144.0,40139.0,0.06579165]
[1645217383896,0.00033308,40143.0,40139.0,0.06579165]
[1645217384097,0.2518961,40144.0,40139.0,0.06579165]
[1645217384297,0.00033308,40143.0,40139.0,0.06579165]
[1645217384496,0.25156302,40144.0,40139.0,0.06579165]
[1645217384497,0.25156302,40144.0,40139.0,0.07575365]
[1645217384696,0.00033308,40143.0,40140.0,0.1]
[1645217384896,0.25156302,40144.0,40140.0,0.1]
[1645217385096,0.2518961,40144.0,40140.0,0.1]
[1645217385297,0.2518961,40144.0,40139.0,0.07575365]
[1645217385298,0.25156302,40144.0,40139.0,0.07575365]
[1645217385549,0.12064188,40140.0,40139.0,0.01348165]
[1645217385743,0.00033308,40143.0,40139.0,0.01348165]
[1645217385943,0.25156302,40144.0,40139.0,0.01348165]
[1645217386146,0.34295509,40141.0,40139.0,0.01348165]
[1645217386342,0.34295509,40141.0,40139.0,0.00351965]
[1645217387443,0.00033308,40142.0,40139.0,0.00351965]
[1645217387643,0.14342234,40143.0,40139.0,0.00351965]
[1645217388045,0.00033308,40143.0,40141.0,0.06585885]
[1645217388245,0.2518961,40144.0,40141.0,0.06585885]
[1645217388450,0.25156302,40144.0,40141.0,0.06585885]
[1645217388843,0.25156302,40144.0,40141.0,0.16585885]
[1645217389045,0.25156302,40144.0,40142.0,0.42960934]
[1645217389299,0.25156302,40144.0,40142.0,0.52960934]
[1645217389499,0.25156302,40144.0,40143.0,0.42960934]
[1645217389897,0.25156302,40144.0,40143.0,0.52960934]
[1645217390299,0.25144539,40144.0,40143.0,0.52960934]
[1645217391602,0.25144539,40144.0,40143.0,0.1]
[1645217391800,0.25144539,40144.0,40141.0,0.46344032]
[1645217392002,0.25144539,40144.0,40141.0,0.06585885]
[1645217392302,0.29504131,40142.0,40141.0,0.00357485]
[1645217393450,0.72465065,40142.0,40140.0,0.00176591]
[1645217393653,0.42960934,40141.0,40140.0,0.00176591]
[1645217393852,0.42960934,40141.0,40140.0,6.591e-05]
[1645217393853,0.47940934,40141.0,40140.0,6.591e-05]
[1645217394050,0.62940934,40141.0,40134.0,0.01039741]
[1645217394250,0.0098,40140.0,40134.0,0.01039741]
[1645217394449,0.0498,40139.0,40134.0,0.01039741]
[1645217394849,0.0448,40139.0,40134.0,0.00900141]
[1645217395049,0.0448,40139.0,40128.0,0.0097]
[1645217395448,0.14281894,40135.0,40128.0,0.0097]
[1645217395848,0.14281894,40135.0,40134.0,0.062294]
[1645217396048,0.0448,40139.0,40134.0,0.062294]
[1645217396552,0.31805247,40135.0,40134.0,0.062294]
[1645217396798,0.12458799,40132.0,40130.0,0.124587]
[1645217397398,0.12458799,40132.0,40128.0,0.0097]
[1645217397600,0.12458799,40132.0,40122.0,0.19758147]
[1645217397798,0.12458799,40132.0,40122.0,0.36964228]
[1645217398099,0.12458799,40132.0,40123.0,0.36964228]
[1645217398298,0.12458799,40132.0,40130.0,0.1]
[1645217399501,0.12458799,40132.0,40131.0,0.062285]
[1645217400099,0.12458799,40132.0,40128.0,0.1]
[1645217400305,0.12458799,40132.0,40119.0,0.64472381]
[1645217400306,1.4,40127.0,40106.0,0.40420064]
[1645217400570,1.4,40127.0,40105.0,0.42306812]
[1645217400571,0.977744,40124.0,40105.0,0.42306812]
[1645217400769,1.077744,40116.0,40101.0,0.01301154]
[1645217400969,0.334929,40104.0,40099.0,0.1]
[1645217401168,0.334929,40103.0,40099.0,0.1]
[1645217401375,0.0498,40102.0,40100.0,0.42808804]
[1645217401565,0.0097,40110.0,40100.0,0.42808804]
[1645217401767,0.12468167,40109.0,40099.0,0.0136848]
[1645217401972,0.0595,40110.0,40099.0,0.0136848]
[1645217402167,0.14590852,40102.0,40099.0,0.0136848]
[1645217402364,0.14590852,40102.0,40094.0,0.1]
[1645217402564,0.0097,40110.0,40095.0,0.42808804]
[1645217402565,0.0498,40105.0,40095.0,0.42808804]
[1645217402765,0.49043345,40104.0,40093.0,0.28466019]
[1645217402967,0.062347,40103.0,40093.0,0.28466019]
[1645217403165,0.0498,40102.0,40093.0,0.28466019]
[1645217403566,0.0498,40102.0,40092.0,0.001]
[1645217403767,0.12757583,40101.0,40092.0,0.001]
[1645217403965,0.0498,40100.0,40092.0,0.001]
[1645217404215,0.19685914,40098.0,40092.0,0.001]
[1645217404409,0.14227835,40097.0,40092.0,0.001]
[1645217404606,0.22487308,40096.0,40092.0,0.001]
[1645217404805,0.09888581,40094.0,40092.0,0.001]
[1645217405006,0.0498,40093.0,40092.0,0.001]
[1645217405207,1.49119744,40092.0,40083.0,0.00025234]
[1645217405407,0.15676441,40090.0,40075.0,0.101]
[1645217405606,0.09480867,40088.0,40083.0,0.00025169]
[1645217405805,0.09480867,40088.0,40082.0,0.001]
[1645217405806,0.0498,40087.0,40082.0,0.00125169]
[1645217406206,0.14281032,40083.0,40082.0,0.00125169]
[1645217406413,0.14281032,40083.0,40082.0,0.001]
[1645217407108,0.09671943,40082.0,40081.0,0.01125169]
[1645217407308,0.14651943,40082.0,40081.0,0.011]
[1645217407508,0.0498,40082.0,40081.0,0.011]
[1645217407961,0.50316036,40089.0,40081.0,0.011]
[1645217407962,1.07826986,40097.0,40081.0,0.073368]
[1645217408162,1.07826986,40097.0,40082.0,0.40511688]
[1645217408163,0.0097,40096.0,40082.0,0.40511688]
[1645217408361,0.5,40094.0,40082.0,0.00025169]
[1645217408559,0.5,40094.0,40081.0,0.01125169]
[1645217408560,0.06237331,40092.0,40081.0,0.01125169]
[1645217408760,0.10275032,40090.0,40081.0,0.01125169]
[1645217408960,0.0498,40089.0,40081.0,0.01125169]
[1645217409159,0.10441646,40088.0,40081.0,0.011]
[1645217409361,0.0498,40087.0,40081.0,0.011]
[1645217409761,0.14395176,40084.0,40081.0,0.011]
[1645217410360,0.14395176,40084.0,40081.0,0.01125169]
[1645217410660,0.2529,40096.0,40081.0,0.41636857]
[1645217410859,0.2529,40096.0,40081.0,0.11125169]
[1645217411069,0.2529,40096.0,40081.0,0.01125169]
[1645217411070,0.09692174,40094.0,40081.0,0.01125169]
[1645217411261,0.0498,40093.0,40081.0,0.011]
[1645217411462,0.0498,40093.0,40081.0,0.32884385]
[1645217411699,0.22739078,40089.0,40081.0,0.011]
[1645217412298,0.10679859,40082.0,40079.0,0.00025169]
[1645217412498,0.10679859,40082.0,40078.0,0.002]
[1645217412499,1.4,40081.0,40078.0,0.002]
[1645217412695,0.09188595,40079.0,40078.0,0.002]
[1645217412895,0.0498,40080.0,40078.0,0.002]
[1645217413096,1.64936377,40078.0,40068.0,0.001]
[1645217413299,0.3238759,40072.0,40068.0,0.001]
[1645217413497,0.09432044,40071.0,40068.0,0.001]
[1645217413896,0.09432044,40071.0,40062.0,0.001]
[1645217414395,0.09205704,40069.0,40062.0,0.001]
[1645217414598,0.09820169,40067.0,40062.0,0.001]
[1645217414797,0.24298017,40063.0,40062.0,0.001]
[1645217415445,0.10471652,40062.0,40061.0,0.01]
[1645217415643,0.5098334,40062.0,40061.0,0.01]
[1645217416044,0.15451652,40062.0,40061.0,0.01]
[1645217416946,0.0498,40062.0,40061.0,0.01]
[1645217417251,0.0498,40062.0,40061.0,0.005]
[1645217417446,0.14151363,40062.0,40061.0,0.005]
[1645217417648,0.0498,40062.0,40061.0,0.005]
[1645217419494,0.1,40078.0,40061.0,0.005]
[1645217419495,0.10501741,40074.0,40061.0,0.005]
[1645217419694,0.40511688,40075.0,40061.0,0.005]
[1645217419895,0.0097,40070.0,40061.0,0.005]
[1645217420291,0.0097,40070.0,40063.0,0.27219667]
[1645217420491,0.23569738,40071.0,40064.0,0.0096]
[1645217420692,0.0095,40070.0,40063.0,0.112392]
[1645217420892,0.14495291,40065.0,40063.0,0.112392]
[1645217421097,0.12479826,40083.0,40063.0,0.062392]
[1645217421297,0.0095,40075.0,40066.0,2.585993]
[1645217421491,0.0095,40075.0,40066.0,2.635993]
[1645217421692,0.0095,40075.0,40068.0,0.06239]
[1645217421891,0.0095,40075.0,40069.0,0.27281512]
[1645217422093,0.010219,40079.0,40071.0,0.1]
[1645217422094,0.11421972,40079.0,40071.0,0.1]
[1645217422294,0.11421972,40079.0,40070.0,0.40511688]
[1645217422295,0.11421972,40079.0,40069.0,0.32281512]
[1645217422595,0.09794378,40078.0,40071.0,0.062391]
[1645217422945,0.09794378,40078.0,40069.0,0.32281512]
[1645217423143,0.14308818,40071.0,40069.0,0.32281512]
[1645217423445,0.14308818,40071.0,40069.0,0.05]
[1645217423642,0.14308818,40071.0,40067.0,0.18408]
[1645217423844,0.14308818,40071.0,40067.0,0.12478]
[1645217424044,0.14308818,40071.0,40064.0,0.124791]
[1645217424343,0.14308818,40071.0,40065.0,0.33779243]
[1645217424742,0.14308818,40071.0,40065.0,0.05]
[1645217425147,0.24410173,40071.0,40065.0,0.05]
[1645217425347,0.14308818,40071.0,40065.0,0.05]
[1645217425745,0.0097,40075.0,40067.0,0.0624]
[1645217426146,0.10537375,40081.0,40067.0,0.0624]
[1645217426716,0.11233168,40079.0,40067.0,0.0624]
[1645217427114,0.11233168,40079.0,40070.0,0.062384]
[1645217427814,0.11233168,40079.0,40074.0,0.25842836]
[1645217428213,0.0096,40080.0,40075.0,0.062382]
[1645217428512,0.11226248,40082.0,40075.0,0.062382]
[1645217428713,1.1012,40091.0,40075.0,0.062382]
[1645217428714,1.011419,40091.0,40075.0,0.46749888]
[1645217428914,0.09248967,40086.0,40085.0,0.32269356]
[1645217429114,0.14458179,40091.0,40086.0,0.062361]
[1645217429916,0.13436279,40091.0,40086.0,0.062361]
[1645217430321,0.13436279,40091.0,40088.0,0.05]
[1645217430547,0.13436279,40091.0,40089.0,0.062361]
[1645217431648,0.13436279,40091.0,40088.0,0.124721]
[1645217431947,0.0945531,40094.0,40088.0,0.124721]
[1645217432148,0.07258499,40099.0,40089.0,0.40511688]
[1645217432149,0.09545051,40097.0,40089.0,0.40511688]
[1645217432549,0.10052504,40101.0,40090.0,0.01648429]
[1645217432748,0.0942648,40101.0,40090.0,0.01648429]
[1645217432953,0.12393285,40102.0,40090.0,0.01648429]
[1645217433148,0.10379141,40101.0,40090.0,0.01648429]
[1645217433748,0.10379141,40101.0,40092.0,0.062357]
[1645217434204,0.25160462,40096.0,40090.0,0.01648429]
[1645217434399,0.25160462,40096.0,40087.0,0.0097]
[1645217434400,0.14475986,40092.0,40087.0,0.0097]
[1645217434599,0.14475986,40092.0,40085.0,0.124735]
[1645217434802,0.10065334,40094.0,40089.0,0.062368]
[1645217435001,0.10123221,40093.0,40089.0,0.062368]
[1645217435201,0.010219,40100.0,40089.0,0.062368]
[1645217435400,0.11164564,40100.0,40090.0,0.40511688]
[1645217435605,0.10193527,40098.0,40091.0,0.124703]
[1645217435800,0.0914013,40098.0,40092.0,0.062352]
[1645217436001,0.010219,40100.0,40092.0,0.062352]
[1645217436200,0.11301438,40100.0,40092.0,0.32531493]
[1645217436404,0.10089193,40098.0,40092.0,0.062352]
[1645217436601,0.09675753,40098.0,40092.0,0.062352]
[1645217436802,0.09224817,40098.0,40092.0,0.062352]
[1645217437003,0.010219,40100.0,40092.0,0.062352]
[1645217437402,0.09150723,40098.0,40092.0,0.062352]
[1645217437601,0.010219,40100.0,40092.0,0.062352]
[1645217437803,0.10388479,40100.0,40092.0,0.062352]
[1645217438050,0.11770908,40094.0,40086.0,0.062371]
[1645217438254,0.50558012,40093.0,40083.0,0.0094]
[1645217438451,0.10165661,40092.0,40083.0,0.0094]
[1645217438753,0.13752808,40094.0,40083.0,0.0094]
[1645217438950,0.10090899,40093.0,40083.0,0.0094]
[1645217439653,0.10090899,40093.0,40085.0,0.27649389]
[1645217440050,0.10090899,40093.0,40083.0,0.0094]
[1645217440451,0.54264496,40094.0,40083.0,0.0094]
[1645217440652,0.13752808,40094.0,40083.0,0.0094]
[1645217440854,0.54264496,40094.0,40087.0,0.062371]
[1645217441053,0.13752808,40094.0,40087.0,0.062371]
[1645217441800,0.54264496,40094.0,40084.0,0.062376]
[1645217442799,0.13487454,40087.0,40085.0,0.0017194]
[1645217444799,0.40511688,40091.0,40085.0,0.0017194]
[1645217445000,0.1,40092.0,40085.0,0.0017194]
[1645217445001,0.26088801,40089.0,40085.0,0.00196985]
[1645217446156,0.14625349,40088.0,40085.0,0.00196985]
[1645217446452,0.13845349,40088.0,40085.0,0.00196985]
[1645217447653,0.13845349,40088.0,40086.0,0.0016559]
[1645217449996,0.249719,40094.0,40086.0,0.0016559]
[1645217450199,0.2395,40094.0,40087.0,0.062373]
[1645217450399,0.0096,40094.0,40087.0,0.062373]
[1645217450595,0.41533588,40099.0,40087.0,0.071973]
[1645217450999,0.20035626,40091.0,40087.0,0.0096]
[1645217451201,0.0095,40090.0,40086.0,0.0016559]
[1645217452701,0.0095,40090.0,40087.0,0.00337159]
[1645217453758,0.010219,40088.0,40087.0,0.00337159]
[1645217453953,0.010219,40088.0,40084.0,0.00169818]
[1645217453954,0.00674317,40086.0,40084.0,0.00169818]
[1645217454153,0.00674317,40086.0,40084.0,0.00194863]
[1645217454154,0.58254276,40086.0,40084.0,0.00194863]
[1645217454453,0.40511688,40085.0,40084.0,0.00169818]
[1645217457803,0.40511688,40085.0,40076.0,0.00025045]
[1645217458003,0.40511688,40085.0,40075.0,0.174767]
[1645217458004,0.14604162,40078.0,40075.0,0.174767]
[1645217458205,0.010219,40080.0,40075.0,0.17501745]
[1645217458406,0.11503388,40086.0,40076.0,0.062383]
[1645217458407,0.00674317,40086.0,40076.0,0.062383]
[1645217458604,0.00674317,40086.0,40076.0,0.112383]
[1645217458803,0.01696217,40086.0,40076.0,0.05025045]
[1645217459403,0.00674317,40086.0,40080.0,0.33745245]
[1645217459712,0.010219,40085.0,40080.0,0.33745245]
[1645217459904,0.010219,40085.0,40080.0,0.3377029]
[1645217460106,0.010219,40085.0,40080.0,0.00025045]
[1645217460307,0.010219,40085.0,40079.0,0.06262245]
[1645217460750,0.010219,40085.0,40079.0,0.00025045]
[1645217460951,0.010219,40085.0,40078.0,0.124743]
[1645217461951,0.010219,40085.0,40078.0,0.12499345]
[1645217462152,0.010219,40085.0,40078.0,0.124743]
[1645217462558,0.000219,40085.0,40078.0,0.124743]
[1645217462955,0.00185716,40085.0,40078.0,0.124743]
[1645217463856,0.00185716,40085.0,40077.0,0.00025045]
[1645217463857,0.11662072,40080.0,40077.0,0.00025045]
[1645217464058,0.11662072,40080.0,40075.0,0.05]
[1645217464059,0.40511688,40079.0,40076.0,0.00025045]
[1645217464306,0.40511688,40079.0,40075.0,0.05]
[1645217464307,0.46751988,40079.0,40075.0,0.05]
[1645217464707,0.19502456,40078.0,40075.0,0.05]
[1645217469254,0.06402821,40079.0,40075.0,0.05]
[1645217469649,0.06402821,40079.0,40075.0,0.05998]
[1645217469848,0.06402821,40079.0,40075.0,0.05]
[1645217470049,0.06402821,40079.0,40075.0,0.05025045]
[1645217470549,0.46914509,40079.0,40075.0,0.05025045]
[1645217470750,0.56914509,40079.0,40075.0,0.05025045]
[1645217471051,0.0459,40078.0,40075.0,0.05]
[1645217471252,0.0459,40078.0,40070.0,0.00025045]
[1645217471253,0.0959,40078.0,40070.0,0.00025045]
[1645217471550,0.06240807,40076.0,40069.0,0.007971]
[1645217472002,0.00162725,40079.0,40069.0,0.007971]
[1645217472800,0.00162725,40079.0,40069.0,1.76766051]
[1645217473002,0.11662072,40080.0,40078.0,0.062388]
[1645217473602,0.11662072,40080.0,40077.0,0.00387152]
[1645217474902,0.07189161,40081.0,40077.0,0.00387152]
[1645217475105,0.07189161,40081.0,40077.0,0.06626052]
[1645217475106,0.0095,40081.0,40077.0,0.06626052]
[1645217475301,0.00674317,40086.0,40077.0,0.00387152]
[1645217475755,0.23652875,40085.0,40077.0,0.00387152]
[1645217475957,0.06239285,40083.0,40077.0,0.00387152]
[1645217476755,0.10973931,40082.0,40077.0,0.00387152]
[1645217477355,0.10973931,40082.0,40079.0,0.00183988]
[1645217477759,0.40511688,40081.0,40079.0,0.00183988]
[1645217478157,0.55101688,40081.0,40079.0,0.00183988]
[1645217478358,0.40511688,40080.0,40079.0,0.00183988]
[1645217478559,0.41471688,40080.0,40079.0,0.00183988]
[1645217480402,0.0096,40080.0,40079.0,0.00183988]
[1645217480799,0.1,40083.0,40079.0,0.00183988]
[1645217481003,0.434929,40080.0,40079.0,0.00183988]
[1645217481200,1.4,40079.0,40077.0,0.00025045]
[1645217481405,0.380829,40078.0,40071.0,0.01023145]
[1645217481603,0.434929,40075.0,40072.0,0.00025045]
[1645217481802,0.26106917,40074.0,40071.0,0.00025045]
[1645217482002,0.19643956,40064.0,40062.0,0.7736068]
[1645217482204,0.19643956,40064.0,40061.0,0.00526879]
[1645217482401,0.19643956,40064.0,40061.0,0.005]
[1645217482702,0.12485355,40064.0,40061.0,0.005]
[1645217484357,0.62587043,40064.0,40061.0,0.005]
[1645217484657,0.062432,40063.0,40056.0,0.001]
[1645217484861,0.062432,40063.0,40052.0,0.0011]
[1645217484862,0.0459,40062.0,40052.0,0.0011]
[1645217485057,0.46755265,40061.0,40052.0,0.0011]
[1645217485255,0.45511688,40061.0,40052.0,0.0011]
[1645217485454,0.0459,40060.0,40052.0,0.0011]
[1645217486253,0.1048728,40056.0,40052.0,0.0011]
[1645217486455,0.0459,40060.0,40052.0,0.0011]
[1645217486456,0.25206884,40060.0,40052.0,0.0011]
[1645217486720,0.06243186,40057.0,40052.0,0.063528]
[1645217486912,0.35206884,40060.0,40052.0,0.41009287]
[1645217487213,0.0459,40060.0,40052.0,0.41009287]
[1645217487417,0.54652865,40059.0,40052.0,0.063528]
[1645217487617,0.17077925,40058.0,40052.0,0.0011]
[1645217487813,0.18017925,40058.0,40052.0,0.0011]
[1645217488214,0.35700006,40058.0,40052.0,0.0011]
[1645217488415,0.41943806,40058.0,40052.0,0.0011]
[1645217488616,0.53187806,40058.0,40052.0,0.0011]
[1645217489614,0.0624375,40056.0,40052.0,0.0011]
[1645217489815,0.0499,40055.0,40052.0,0.0011]
[1645217491751,0.087342,40055.0,40052.0,0.0001]
[1645217491952,0.187342,40055.0,40052.0,0.0001]
[1645217492151,0.1,40053.0,40052.0,0.0001]
[1645217492352,0.55324572,40053.0,40052.0,0.0001]
[1645217492554,0.60324572,40053.0,40052.0,0.0001]
[1645217492751,0.70324572,40053.0,40052.0,0.0001]
[1645217493355,0.15,40051.0,40045.0,0.001]
[1645217493555,0.162462,40048.0,40045.0,0.001]
[1645217493752,0.0499,40047.0,40045.0,0.001]
[1645217493952,0.0499,40047.0,40044.0,6.65e-05]
[1645217494208,0.0499,40047.0,40039.0,0.01028564]
[1645217494209,1.4,40046.0,40039.0,0.01028564]
[1645217494403,1.4,40046.0,40038.0,0.0031]
[1645217494404,1.4,40044.0,40038.0,0.0031]
[1645217494604,0.0499,40043.0,40038.0,0.0031]
[1645217495207,0.07196867,40042.0,40038.0,0.0031]
[1645217495405,1.512369,40041.0,40033.0,0.0011]
[1645217495604,0.40334572,40040.0,40033.0,0.0011]
[1645217495805,0.0499,40039.0,40033.0,0.0011]
[1645217496005,0.1,40035.0,40033.0,0.0011]
[1645217496207,0.1499,40035.0,40033.0,0.0011]
[1645217496606,0.55324572,40035.0,40033.0,0.0011]
[1645217499257,0.1499,40035.0,40033.0,0.0011]
[1645217499458,0.55324572,40035.0,40033.0,0.0011]
[1645217499658,0.1499,40035.0,40033.0,0.0011]
[1645217499860,0.0499,40035.0,40033.0,0.0011]
[1645217500464,0.0499,40035.0,40034.0,0.32570202]
[1645217500659,0.1,40039.0,40035.0,0.062451]
[1645217500860,0.1,40039.0,40035.0,0.112451]
[1645217501722,0.1,40039.0,40036.0,0.33615082]
[1645217502512,0.1,40039.0,40035.0,0.11251763]
[1645217502712,0.1,40039.0,40035.0,0.112451]
[1645217502912,0.09642446,40039.0,40035.0,0.11251475]
[1645217503513,0.09642446,40039.0,40035.0,0.05006375]
[1645217504014,0.33752323,40039.0,40035.0,0.05]
[1645217504213,0.33752323,40039.0,40035.0,0.05006375]
[1645217504614,0.33752323,40039.0,40035.0,0.06005275]
[1645217504812,0.0624652,40037.0,40035.0,0.06005275]
[1645217505012,0.0624652,40037.0,40035.0,0.05006375]
[1645217505213,0.0624652,40037.0,40035.0,0.05]
[1645217505461,0.09642446,40039.0,40035.0,0.05]
[1645217506460,0.40387668,40038.0,40034.0,0.00325984]
[1645217506661,0.52881706,40038.0,40034.0,0.00325984]
[1645217506960,0.0499,40037.0,40034.0,0.00325984]
[1645217507360,0.12880917,40035.0,40034.0,0.00325984]
[1645217507761,0.12880917,40035.0,40033.0,0.0011]
[1645217508561,0.0499,40037.0,40033.0,0.0011]
[1645217509705,0.11522918,40036.0,40033.0,0.0011]
[1645217509905,0.16512918,40036.0,40033.0,0.0011]
[1645217510106,0.22759841,40036.0,40033.0,0.0011]
[1645217510809,0.27759841,40036.0,40033.0,0.0011]
[1645217511007,0.22759841,40036.0,40033.0,0.0011]
[1645217511905,0.23394713,40034.0,40033.0,0.0011]
[1645217513150,0.0499,40036.0,40033.0,0.0011]
[1645217513354,0.09642446,40039.0,40033.0,0.0011]
[1645217513951,0.09642446,40039.0,40035.0,0.05]
[1645217514752,0.09642446,40039.0,40035.0,0.05024826]
[1645217515152,0.09642446,40039.0,40035.0,0.05031091]
[1645217515752,0.09642446,40039.0,40036.0,0.3521929]
[1645217515956,0.09642446,40039.0,40036.0,0.00024826]
[1645217516152,0.09642446,40039.0,40035.0,0.05024826]
[1645217516353,0.09642446,40039.0,40035.0,0.0603009]
[1645217516803,0.09642446,40039.0,40035.0,0.0503109]
[1645217517206,0.09642446,40039.0,40033.0,0.0011]
[1645217517207,0.14642446,40039.0,40034.0,0.00024826]
[1645217517406,0.0499,40038.0,40035.0,6.265e-05]
[1645217517606,0.05100973,40038.0,40035.0,6.265e-05]
[1645217517804,0.23698174,40037.0,40035.0,6.265e-05]
[1645217518005,0.0499,40036.0,40035.0,6.265e-05]
[1645217518405,0.0499,40036.0,40034.0,0.00024826]
[1645217518610,0.0499,40036.0,40033.0,0.0011]
[1645217518811,0.0499,40036.0,40033.0,0.00134826]
[1645217519007,0.0499,40036.0,40033.0,0.0011]
[1645217519008,0.12418098,40035.0,40033.0,0.0011]
[1645217519507,0.06246631,40037.0,40033.0,0.0011]
[1645217519709,0.00110973,40038.0,40033.0,0.0011]
[1645217520558,0.062471,40037.0,40033.0,0.0011]
[1645217520855,0.12493786,40037.0,40033.0,0.00134826]
[1645217521059,0.12493786,40037.0,40033.0,0.0011]
[1645217521458,0.3881998,40036.0,40033.0,0.0011]
[1645217521657,0.40387668,40035.0,40033.0,0.0001]
[1645217521860,1.4499,40034.0,40028.0,0.0011]
[1645217522060,0.0003,40032.0,40028.0,0.0011]
[1645217522259,0.0499,40031.0,40028.0,0.0011]
[1645217523561,0.0499,40031.0,40028.0,0.00116398]
[1645217523768,1.4,40029.0,40022.0,0.00121576]
[1645217523963,0.51627525,40028.0,40022.0,0.00121576]
[1645217524408,0.51627525,40028.0,40021.0,0.01]
[1645217524607,0.13539662,40023.0,40021.0,0.01]
[1645217524808,0.0499,40022.0,40021.0,0.01]
[1645217526714,0.0097,40025.0,40021.0,0.01]
[1645217526913,0.7507,40033.0,40021.0,0.105]
[1645217526914,0.0003,40032.0,40021.0,0.105]
[1645217527112,0.0093,40031.0,40021.0,0.005]
[1645217527311,0.0093,40031.0,40021.0,0.067461]
[1645217527511,0.0093,40031.0,40029.0,0.062464]
[1645217527715,0.14419123,40032.0,40029.0,0.062464]
[1645217528158,0.14419123,40032.0,40027.0,0.124927]
[1645217528359,0.14419123,40032.0,40028.0,6.226e-05]